Cogmind - Beta 16 @@@ ROGUE MODE // 2025.10.30 @ 21:38:23 Player: C0-2MO Result: Destroyed by P-60 Hacker with Shock Rifle Performance ------------- Evolutions (4) 2000 Regions Visited (13) 2600 Robots Destroyed (447) 2235 Value Destroyed (13218) 13218 Prototype IDs (48) 960 Alien Tech Used (0) 0 Bonus (6951) 6951 TOTAL SCORE: 27964 Bonus ------- Triggered High Security 500 High Alert Combat Kills 5949 Follower Combat Kills 202 Aligned with FarCom 300 Cogmind --------- Core Integrity 0/850 Matter 208/300 Energy 96/100 System Corruption 4% Temperature Cool (0) Movement Hovering (60) Location -6/Factory Parts ------- > --- POWER (1) -------- (None) > --- PROPULSION (6) --- Improved Gravmag System > --- UTILITY (6) ------ Enhanced Optical Array Improved Launcher Guidance Computer Improved Hacking Suite > --- WEAPON (2) ------- Chainsword > --- INVENTORY (5) ---- Fusion Compressor Improved Launcher Guidance Computer Trap Reconfigurator Autogun Precision Rocket Launcher Peak State ------------ > --- POWER ------------ Heavy Deuterium Engine > --- PROPULSION ------- Cooled Aerolev Unit Combat Airjet Gravmag Array Gravmag Array > --- UTILITY ---------- Large Storage Unit Enhanced Optical Array Improved Launcher Guidance Computer Improved Hacking Suite High-powered Tractor Beam Trap Reconfigurator > --- WEAPON ----------- Precision Rocket Launcher Chainsword > --- INVENTORY -------- Fusion Compressor Cold Fusion Reactor Improved Hover Unit Improved Gravmag System Matter Compressor Improved Launcher Guidance Computer ECM Suite Improved Utility Shielding Improved Light Armor Plating Shock Absorption System Authchip [Propulsion] CPS Tube Power Sword [Rating: 80] Favorites ----------- Power Light Ion Engine Engine Light Ion Engine Power Core Light Fission Core Reactor Cold Fusion Reactor Propulsion Aerolev Unit Treads Light Treads Leg Flexi-carbon Leg Hover Unit Aerolev Unit Flight Unit Improved Flight Unit Utility Hacking Suite Device Structural Scanner Storage Large Storage Unit Processor Visual Processing Unit Hackware Hacking Suite Protection Propulsion Shielding Weapon Katana Energy Gun Heavy Particle Gun Energy Cannon Compact Ion Cannon Ballistic Gun Light Assault Rifle Ballistic Cannon Antimatter Cannon Launcher Rocket Launcher Slashing Weapon Katana Build | -11 -10 -10 -9 -9 -9 -8 -8 -8 -8 -8 -6 -6 -6 ------- Run | Yrd Mat Min Mat Min Exi Min Mat Sto Rec Scr Fac Was Fac Slots Evolved 8 | . . . 2 . . . 2 . . . 4 . . Power . | . . . . . . . . . . . . . . Propulsion 4 | . . . 1 . . . 1 . . . 2 . . Utility 4 | . . . 1 . . . 1 . . . 2 . . Weapon . | . . . . . . . . . . . . . . Parts Attached 165 | 5 13 3 29 2 . . 32 7 1 3 51 . 19 Power 19 | . . . 5 1 . . 5 1 . . 6 . 1 Engine 15 | . . . 5 1 . . 4 1 . . 3 . 1 Core 3 | . . . . . . . 1 . . . 2 . . Reactor 1 | . . . . . . . . . . . 1 . . Propulsion 50 | 2 3 2 6 . . . 11 . . 1 21 . 4 Treads 2 | 2 . . . . . . . . . . . . . Leg 2 | . . . . . . . . . . . 2 . . Wheel . | . . . . . . . . . . . . . . Hover 28 | . . . . . . . 4 . . 1 19 . 4 Flight 18 | . 3 2 6 . . . 7 . . . . . . Utility 57 | 1 6 1 10 . . . 10 3 1 2 16 . 7 Device 29 | 1 3 . 4 . . . 6 2 1 2 5 . 5 Storage 3 | . . . . . . . 1 . . . 2 . . Processor 8 | . . . 2 . . . . 1 . . 4 . 1 Hackware 6 | . . . 1 . . . 1 . . . 4 . . Protection 11 | . 3 1 3 . . . 2 . . . 1 . 1 Artifact . | . . . . . . . . . . . . . . Weapon 39 | 2 4 . 8 1 . . 6 3 . . 8 . 7 Energy Gun 3 | . 1 . . . . . 2 . . . . . . Energy Cannon 1 | . . . . . . . . . . . . . 1 Ballistic Gun 13 | 2 1 . 5 . . . 3 1 . . . . 1 Ballistic Cannon 2 | . . . . . . . . . . . 2 . . Launcher 14 | . 1 . 2 1 . . 1 2 . . 3 . 4 Special Weapon . | . . . . . . . . . . . . . . Impact Weapon . | . . . . . . . . . . . . . . Slashing Weapon 6 | . 1 . 1 . . . . . . . 3 . 1 Piercing Weapon . | . . . . . . . . . . . . . . Special Melee Weapon . | . . . . . . . . . . . . . . Unidentified Prototypes 20 | . . . 3 . . . 2 3 . . 6 . 6 Parts Lost 63 | . 5 . 11 . . . 18 1 . . 17 . 11 Power 8 | . . . 2 . . . 4 1 . . 1 . . Propulsion 31 | . 2 . 5 . . . 7 . . . 12 . 5 Utility 13 | . 2 . 3 . . . 2 . . . 3 . 3 Weapon 11 | . 1 . 1 . . . 5 . . . 1 . 3 Highest Loss Streak 7 | . 2 . 3 . . . 7 1 . . 5 . 2 To Critical Strikes 1 | . . . . . . . . . . . 1 . . Average Backups 8 | . 4 5 4 5 5 5 7 9 8 9 12 13 14 Power . | . . . . . . . . . . . . 1 1 Propulsion 1 | . 1 2 . 1 1 1 1 3 3 2 2 . . Utility 4 | . 1 2 1 2 2 2 3 4 5 5 6 8 8 Weapon 1 | . 1 1 2 1 2 2 1 1 . 1 1 3 2 Tool/Special . | . . . . . . . . . . . . . . Unused Backups 23 | . 4 2 3 . 1 . 1 . . 1 4 . 7 Power 2 | . . . . . . . . . . . . . 2 Propulsion 5 | . 2 1 1 . . . . . . . 1 . . Utility 12 | . 1 1 1 . 1 . 1 . . 1 2 . 4 Weapon 3 | . 1 . 1 . . . . . . . 1 . . Tool/Special 1 | . . . . . . . . . . . . . 1 Average Slot Usage (%) 87 | . 76 85 84 100 100 100 92 97 92 90 93 86 83 Engine 5 | . . . 5 11 11 11 7 9 9 9 4 6 5 Hover 17 | . . . . . . . 21 36 36 36 33 26 25 Flight 12 | . 24 28 26 33 33 33 12 . . . . . . Device 8 | . 11 14 6 11 11 11 9 9 9 9 5 6 6 Storage 3 | . . . . . . . 4 9 9 9 6 6 5 Processor 8 | . . . 9 11 11 11 9 9 9 9 10 13 13 Hackware 5 | . . . 5 . . . 6 . . . 12 13 9 Protection 6 | . 13 14 9 11 11 11 4 9 9 9 2 . 1 Energy Gun 1 | . . . . . . . 7 7 . . . . . Ballistic Gun 4 | . 10 14 10 5 11 11 2 1 2 . . . . Ballistic Cannon 1 | . . . . . . . . . . . 5 6 2 Launcher 3 | . 7 10 6 11 11 11 1 1 . . . 6 3 Slashing Weapon 5 | . 5 3 4 5 . . 3 5 9 9 5 . 5 Peak Build Rating 80 | 5 6 9 20 20 21 21 44 45 40 37 78 69 80 Average Rating 36 | 3 5 6 16 20 20 21 32 39 37 36 63 68 69 On Entrance 28 | . 5 6 9 20 20 21 21 43 40 36 37 68 69 Avg Prop Armor Cover (%) 14 | 29 27 . 1 . . . 16 . . . 8 . . Naked Turns . | . . . . . . . . . . . . . . Heaviest Build 48 | 3 9 8 13 12 12 12 32 34 32 29 48 48 48 Greatest Support 65 | 3 8 8 15 15 15 15 32 32 32 32 62 48 65 Greatest Overweight (x) 1 | . 1 . . . . . 1 1 . . 1 . 1 Average Overweight (x) . | . . . . . . . . . . . . . . Largest Inventory Capacity 15 | 5 5 5 5 5 5 5 10 10 10 10 15 15 15 Average Capacity 9 | 5 5 5 5 5 5 5 7 10 10 10 13 15 14 Most Carried 15 | 2 5 5 5 5 5 5 10 10 9 10 15 14 15 Average Carried 8 | . 4 4 4 4 4 5 7 9 8 9 12 13 14 Final Capacity 15 | 5 5 5 5 5 5 5 10 10 10 10 15 15 5 Final Carried 14 | 2 5 5 5 5 5 5 10 8 9 10 12 14 5 Class Distribution -------------------- 47% | Mutant 11% | Hacker-Mutant 8% | Hacker-Scout 8% | Scavenger-Mutant 7% | Scout 7% | Scavenger-Scout 3% | Scavenger-Sprinter Dominant Class ---------------- Mutant | -10/Materials Mutant | -10/Mines Mutant | -9/Materials Mutant | -9/Mines Mutant | -9/Exiles Mutant | -8/Mines Mutant | -8/Materials Commander-Scout | -8/Storage Scavenger-Scout | -8/Recycling Scavenger-Mutant | -8/Scraptown Hacker-Mutant | -6/Factory Hacker-Mutant | -6/Waste Scout | -6/Factory Resources | -11 -10 -10 -9 -9 -9 -8 -8 -8 -8 -8 -6 -6 -6 ----------- Run | Yrd Mat Min Mat Min Exi Min Mat Sto Rec Scr Fac Was Fac Matter Collected 10446 | 258 1334 280 1612 385 . 89 1398 235 20 55 2151 201 2428 Remotely 6180 | . 1128 280 1040 385 . 89 1032 . . . 424 201 1601 Salvage Created 14295 | 118 2103 141 2488 524 . 153 2581 52 25 . 2929 . 3181 Parts 730 | 7 142 19 140 36 . 14 131 2 5 . 117 . 117 Haulers Intercepted 23 | . 2 . 6 . . . 5 . . . 5 . 5 Recyclers Shooed 13 | 1 4 1 2 2 . . 2 . . . . . 1 Parts Field Recycled . | . . . . . . . . . . . . . . Retrieved Matter . | . . . . . . . . . . . . . . Parts Self-Destructed . | . . . . . . . . . . . . . . Prevented . | . . . . . . . . . . . . . . Parts Restored . | . . . . . . . . . . . . . . Kills | -11 -10 -10 -9 -9 -9 -8 -8 -8 -8 -8 -6 -6 -6 ------- Run | Yrd Mat Min Mat Min Exi Min Mat Sto Rec Scr Fac Was Fac Combat Hostiles Destroyed 276 | . 28 13 51 19 . 6 51 1 . . 41 . 66 Melee 15 | . . . . . . . 6 . . . 6 . 3 Guns 53 | . 9 . 15 1 . . 26 1 . . . . 1 Cannons 29 | . . . . . . . . . . . 19 . 10 AOE 177 | . 19 13 36 18 . 6 17 . . . 16 . 52 Classes Destroyed 20 | 2 7 1 5 . . . . . . . 4 . 1 Worker 55 | . 28 3 2 1 . . 6 . . . 9 . 6 Builder 26 | . 11 1 . 3 . . 4 . 1 . 4 . 2 Tunneler 9 | 1 2 . 2 2 . 1 . . . . 1 . . Hauler 23 | . 2 . 6 . . . 5 . . . 5 . 5 Recycler 37 | 1 11 1 5 3 . . 4 . . . 6 . 6 Mechanic 8 | . . . 1 . . . 3 . . . 1 . 3 Operator 12 | . 2 . 2 . . . 2 . . . 4 . 2 Watcher 19 | . 3 . 4 . . . 3 . . . 5 . 4 Swarmer 57 | . 9 3 6 10 . 3 11 . . . 3 . 12 Cutter 2 | . . . . . . . . . . . 2 . . Saboteur 3 | . . . . . . . . . . . 1 . 2 Grunt 123 | . 19 . 30 7 . 2 24 1 . . 20 . 20 Brawler 12 | . . . 2 2 . 1 3 . . . 2 . 2 Duelist 9 | . . . 1 . . . 3 . . . 1 . 4 Protector 5 | . . . 2 . . . 1 . . . . . 2 Sentry 38 | . . . 10 . . . 9 . . . 5 . 14 Specialist 1 | . . . . . . . . . . . . . 1 Hunter 6 | . . . . . . . . . . . 4 . 2 Programmer 10 | . . . . . . . . . . . 3 . 7 Assembled 10 | . . 10 . . . . . . . . . . . Best Kill Streak 17 | 2 10 13 9 8 . 7 8 1 1 . 17 . 9 Combat Bots Only 10 | . 5 10 9 4 . 6 7 1 . . 6 . 8 Max Kills in Single Turn 6 | 1 2 3 3 3 . 2 3 1 1 . 6 . 4 Gunslinging . | . . . . . . . . . . . . . . Exploded 4 | . 2 3 3 3 . 2 3 . . . 4 . 4 Melee 1 | . . . . . . . 1 . . . 1 . 1 Uniques/NPCs Destroyed . | . . . . . . . . . . . . . . Combat | -11 -10 -10 -9 -9 -9 -8 -8 -8 -8 -8 -6 -6 -6 -------- Run | Yrd Mat Min Mat Min Exi Min Mat Sto Rec Scr Fac Was Fac Hostile Shots Fired 1209 | . 125 4 144 30 . 14 239 10 . . 327 . 316 Missed 485 | . 37 1 59 13 . 4 96 4 . . 126 . 145 Hits 724 | . 88 3 85 17 . 10 143 6 . . 201 . 171 Melee 4 | . . . . . . . . . . . 3 . 1 Projectile 720 | . 88 3 85 17 . 10 143 6 . . 198 . 170 AOE 4 | . . . . . . . . 4 . . . . . Critical Strikes 24 | . . . 4 . . . 5 . . . 12 . 3 Actively Blocked 1 | . . . . . . . 1 . . . . . . Damage Taken 9789 | . 918 56 1076 188 . 92 1981 217 . . 3048 . 2213 Core 1941 | . 192 8 236 62 . 46 537 . . . 397 . 463 Absorbed by Shields 24 | . . . . . . . . . . . 24 . . Redirected to Shielding 108 | . . . 17 9 . . 45 . . . 37 . . Ignored by Resistances 11 | . . . . . . . . 9 . . 2 . . Regen/Repaired (Parts) 945 | . 40 . 19 . . . 174 . . . 377 . 335 Core Remaining (%) 34 | 100 . 20 . . . 14 . . . 2 . . . Volleys Fired 861 | 4 145 12 170 33 . 10 175 5 . . 143 1 163 Largest 2 | 2 2 1 2 2 . 2 2 2 . . 2 1 2 Hottest 110 | 40 50 30 56 56 . 56 110 110 . . 79 45 66 Shots Fired 1174 | 8 197 12 258 37 . 14 316 9 . . 149 1 173 Gun 627 | 8 98 . 199 9 . 8 277 8 . . . . 20 Cannon 214 | . . . . . . . . . . . 132 . 82 Launcher 333 | . 99 12 59 28 . 6 39 1 . . 17 1 71 Special . | . . . . . . . . . . . . . . Kinetic 615 | 8 95 . 199 9 . 8 62 . . . 132 . 102 Thermal 223 | . . . . . . . 215 8 . . . . . Explosive 320 | . 99 12 47 28 . 6 39 . . . 17 1 71 Electromagnetic 16 | . 3 . 12 . . . . 1 . . . . . Robot Hit Streak 36 | 3 10 4 13 7 . 5 12 10 . . 9 7 36 Robot Miss Streak 7 | 1 2 2 5 2 . 5 7 3 . . 5 1 3 Penetration Max 1 | . . . . . . . . . . . 1 . . Secondary Targets 6 | . 4 . . . . . 2 . . . . . . Max Gunslinging Chain 1 | . 1 . . . . . 1 . . . . . . Shots Hit Robots 961 | 5 160 9 177 31 . 6 235 5 1 . 158 1 173 Core Hits 746 | 3 122 25 118 34 . 9 150 2 1 . 109 . 173 Critical Kills 1 | . 1 . . . . . . . . . . . . Critical Parts Destroyed 2 | . . . 1 . . . 1 . . . . . . Critical Strikes 46 | . 1 . 1 . . . 15 . . . 17 . 12 Burn 11 | . . . . . . . 11 . . . . . . Destroy 3 | . 1 . 1 . . . 1 . . . . . . Blast 14 | . . . . . . . . . . . 6 . 8 Sever 18 | . . . . . . . 3 . . . 11 . 4 Melee Attacks 508 | . 105 5 34 14 . . 89 35 1 . 134 . 91 Impact . | . . . . . . . . . . . . . . Slashing 508 | . 105 5 34 14 . . 89 35 1 . 134 . 91 Piercing . | . . . . . . . . . . . . . . Sneak Attacks 111 | . 35 3 7 5 . . 21 . 1 . 22 . 17 Combat Hostiles 1 | . . . . . . . . . . . 1 . . Follow-up Attacks 1 | . . . . . . . . . . . . . 1 Damage Inflicted 48071 | 42 5420 839 5413 2423 . 566 7875 91 71 . 9050 220 16061 Guns 5852 | 42 487 . 1819 90 . 66 3119 71 . . . . 158 Cannons 4415 | . . . . . . . . . . . 2423 . 1992 Explosions 25219 | . 2490 681 2789 1714 . 500 2503 20 . . 3253 220 11049 Melee 12582 | . 2440 158 805 619 . . 2253 . 71 . 3374 . 2862 Ramming 3 | . 3 . . . . . . . . . . . . Kinetic 7749 | 42 487 . 1819 90 . 66 672 . . . 2423 . 2150 Thermal 5736 | . . . 37 . . . 2515 71 . . 1373 . 1740 Explosive 21534 | . 2440 681 2355 1714 . 500 2435 . . . 1880 220 9309 Electromagnetic 467 | . 50 . 397 . . . . 20 . . . . . Impact . | . . . . . . . . . . . . . . Slashing 12582 | . 2440 158 805 619 . . 2253 . 71 . 3374 . 2862 Piercing . | . . . . . . . . . . . . . . Highest Corruption 4 | . . . . . . . 1 1 1 . 1 . 4 Average Corruption 1 | . . . . . . . 1 1 1 . 1 . 2 Corruption Purged 1 | . . . . . . . . . . . 1 . . Corruption Blocked . | . . . . . . . . . . . . . . Effects 49 | . . . . . . . 17 6 2 . 1 . 23 Message Errors 11 | . . . . . . . 4 2 . . . . 5 Matter Fused 11 | . . . . . . . 4 . 2 . 1 . 4 Heat Flow Errors 10 | . . . . . . . 2 . . . . . 8 Energy Discharges 2 | . . . . . . . 1 . . . . . 1 Parts Rejected 2 | . . . . . . . . 2 . . . . . Data Loss (minor) 3 | . . . . . . . 1 1 . . . . 1 Data Loss (major) 5 | . . . . . . . 2 1 . . . . 2 Misfires 2 | . . . . . . . 2 . . . . . . Alerts 2 | . . . . . . . 1 . . . . . 1 Weapon Failures 1 | . . . . . . . . . . . . . 1 Overload Shots . | . . . . . . . . . . . . . . Overflow Damage 3050 | . 318 42 225 233 . 64 322 . . . 885 . 961 Projectiles 174 | . . . . . . . . . . . 69 . 105 Explosions 1100 | . 23 16 89 71 . 64 24 . . . 441 . 372 Melee 1776 | . 295 26 136 162 . . 298 . . . 375 . 484 Knockbacks 8 | . . . . . . . . . . . 6 . 2 Impact . | . . . . . . . . . . . . . . Kinetic 8 | . . . . . . . . . . . 6 . 2 Secondary . | . . . . . . . . . . . . . . Self-Inflicted Damage 400 | . 11 24 45 35 . 6 78 22 . . 140 . 39 Shots 19 | . 1 1 5 2 . 1 3 1 . . 3 . 2 Rammed 2 | . 2 . . . . . . . . . . . . Targets Rammed 2 | . 2 . . . . . . . . . . . . Kicked . | . . . . . . . . . . . . . . Crushed . | . . . . . . . . . . . . . . Highest Temperature 250 | . 20 . 45 6 . 2 239 108 . . 26 . 250 Average Temperature 33 | . 5 . 8 3 . 2 38 51 . . 5 . 61 Received Heat Transfer 2725 | . 324 . 321 39 . . 783 18 . . 910 . 330 Siege Activations . | . . . . . . . . . . . . . . Martial Activations . | . . . . . . . . . . . . . . Shielding Activations . | . . . . . . . . . . . . . . Robots Disrupted . | . . . . . . . . . . . . . . Combat Hostiles . | . . . . . . . . . . . . . . Robots Corrupted . | . . . . . . . . . . . . . . Combat Hostiles . | . . . . . . . . . . . . . . Parts Fried 5 | . . . . . . . 2 . . . 3 . . Impact Corruptions . | . . . . . . . . . . . . . . Robots Melted . | . . . . . . . . . . . . . . Combat Hostiles . | . . . . . . . . . . . . . . Parts Melted 8 | . . . . . . . 7 . . . 1 . . Heat Transferred 7766 | . . . 50 . . . 5668 148 . . 850 . 1050 Parts Sabotaged 6 | . . . . . . . . . . . 3 . 3 Parts Stolen . | . . . . . . . . . . . . . . Parts Stripped . | . . . . . . . . . . . . . . Power Chain Reactions 2 | . . . 2 . . . . . . . . . . Alert | -11 -10 -10 -9 -9 -9 -8 -8 -8 -8 -8 -6 -6 -6 ------- Run | Yrd Mat Min Mat Min Exi Min Mat Sto Rec Scr Fac Was Fac Maximum Alert Level 5 | . 5 3 4 3 . . 5 4 2 . 5 2 5 Low Security (%) 5 | 100 10 . . . . 100 9 . . . 7 . . Level 1 11 | . 12 . 4 . . . . . 46 . 35 . 1 Level 2 15 | . 12 91 14 15 . . 10 . 53 . 6 100 12 Level 3 27 | . 14 8 39 84 . . 12 79 . . 31 . 30 Level 4 28 | . 44 . 41 . . . 42 20 . . 13 . 17 Level 5 9 | . 5 . . . . . 23 . . . 5 . 18 High Security 3 | . . . . . . . . . . . . . 19 Max Security . | . . . . . . . . . . . . . . Sterilizations 2 | . . . 1 . . . 1 . . . . . . Peak Influence 3486 | 5 1678 731 1473 1087 . 174 2031 1246 538 . 1795 619 3486 Initial 858 | . . 651 254 570 . . 55 858 474 . . 619 413 Average 1001 | 1 956 661 976 857 . 130 1216 920 406 . 694 601 1482 Influence Increases 15438 | 10 2317 201 1956 687 . 194 2850 644 129 . 2580 11 3859 Destroy 0b10 Robot/C 5480 | . 560 80 980 380 . 120 1000 220 . . 820 . 1320 Destroy 0b10 Robot/NC 980 | 10 295 25 125 45 . 5 140 . 5 . 175 . 155 Destroy Leader 1246 | . 150 20 242 80 . 20 236 50 . . 200 . 248 Allied During Kill 118 | . . 15 6 . . . . 97 . . . . . Trap Triggered on 0b10 360 | . . . . 10 . . 50 . . . 110 . 190 Successful Hack 456 | . 34 . 46 . . . 34 39 34 . 176 . 93 Select Force Hacks 170 | . 30 . 30 . . . . . 90 . . . 20 Disable Machine 1815 | . 405 30 120 15 . . 165 15 . . 420 . 645 Anti-Garrison Action 500 | . . . . . . . 150 200 . . . . 150 Destroy Structure 2123 | . 468 31 257 157 . 34 250 8 . . 334 11 573 Partial Spotted 255 | . 30 . 60 . . . 105 . . . 45 . 15 Lose Combat Pursuer 1935 | . 345 . 90 . . 15 720 15 . . 300 . 450 Influence Decreases 11937 | 10 645 1221 1146 1082 1067 50 963 1457 1070 277 811 1190 948 Entered New Map 6988 | . . 1021 398 892 1067 . 89 1173 744 277 . 1150 177 Time Decay 4019 | 10 595 140 638 180 . 50 684 214 286 . 611 40 571 Lost Part 630 | . 50 . 110 . . . 180 10 . . 170 . 110 Lost Ally 300 | . . 60 . 10 . . 10 60 40 . 30 . 90 Squads Dispatched 97 | . 11 1 7 2 . . 14 4 . . 21 . 37 Investigation 24 | . 9 . 3 . . . 2 1 . . 2 . 7 Extermination 9 | . . . . . . . . . . . 4 . 5 Reinforcement 29 | . 2 . 1 2 . . 6 . . . 12 . 6 Assault 32 | . . 1 3 . . . 5 2 . . 3 . 18 Garrison 3 | . . . . . . . 1 1 . . . . 1 Intercept . | . . . . . . . . . . . . . . Searches Triggered . | . . . . . . . . . . . . . . Unchained Authorized 1 | . . . . . . . . . . . 1 . . Construction Impeded 8 | . . . . 2 . . 1 . . . 5 . . Haulers Reinforced 4 | . . . . . . . . . . . 2 . 2 Active Scanning Responses . | . . . . . . . . . . . . . . Cargo Convoy Interrupts 1 | . . . . . . . . . . . . . 1 Stealth | -11 -10 -10 -9 -9 -9 -8 -8 -8 -8 -8 -6 -6 -6 --------- Run | Yrd Mat Min Mat Min Exi Min Mat Sto Rec Scr Fac Was Fac Distress Signals 22 | . 5 1 2 1 . . 7 1 . . 3 . 2 Communications Jammed . | . . . . . . . . . . . . . . Distress Signals . | . . . . . . . . . . . . . . Times Spotted 485 | . 55 10 69 20 . 6 117 8 1 . 87 1 111 Peak Tracking Total 11 | . 11 7 8 6 . 6 11 5 1 . 8 1 11 Tactical Retreats 59 | . 6 . 3 . . 1 24 2 . . 10 . 13 ECM-based Alert Blocks 5 | . . . . . . . 4 1 . . . . . Traps | -11 -10 -10 -9 -9 -9 -8 -8 -8 -8 -8 -6 -6 -6 ------- Run | Yrd Mat Min Mat Min Exi Min Mat Sto Rec Scr Fac Was Fac Traps Triggered 8 | . 4 . 1 . . . . 2 . . 1 . . Indirectly . | . . . . . . . . . . . . . . Trap Hack Attempts . | . . . . . . . . . . . . . . Triggered . | . . . . . . . . . . . . . . Disarmed . | . . . . . . . . . . . . . . Reprogrammed . | . . . . . . . . . . . . . . Reused 36 | . . . . 1 . . 5 . . . 11 . 19 Traps Reconfigurated 100 | . . . . . . . 12 . . . 53 . 35 Traps Extracted . | . . . . . . . . . . . . . . Installed 1 | . . . . 1 . . . . . . . . . Triggered 36 | . . . . 1 . . 5 . . . 11 . 19 Machines | -11 -10 -10 -9 -9 -9 -8 -8 -8 -8 -8 -6 -6 -6 ---------- Run | Yrd Mat Min Mat Min Exi Min Mat Sto Rec Scr Fac Was Fac Machines Disabled 124 | . 27 2 9 1 . . 12 1 . . 28 . 44 Max in Single Turn 6 | . 3 1 1 1 . . 2 1 . . 6 . 6 Garrison Access 6 | . . . . . . . 1 1 . . 3 . 1 Machines Repaired . | . . . . . . . . . . . . . . Machines Dismantled . | . . . . . . . . . . . . . . Machines Sabotaged . | . . . . . . . . . . . . . . Overloaded Fab Kills . | . . . . . . . . . . . . . . Hacking | -11 -10 -10 -9 -9 -9 -8 -8 -8 -8 -8 -6 -6 -6 --------- Run | Yrd Mat Min Mat Min Exi Min Mat Sto Rec Scr Fac Was Fac Machines Accessed 111 | . 9 . 16 . 2 . 15 7 9 . 30 . 23 Terminals 65 | . 6 . 10 . . . 10 6 6 . 15 . 12 Fabricators 4 | . . . . . . . . . . . 1 . 3 Repair Stations 10 | . 1 . 2 . . . 1 . . . 3 . 3 Recycling Units 17 | . 2 . 2 . . . 2 . 3 . 6 . 2 Scanalyzers 9 | . . . 2 . . . 2 . . . 2 . 3 Garrison Access 4 | . . . . . . . . 1 . . 3 . . Total Hacks 326 | . 33 . 59 . 2 . 53 12 24 . 86 . 57 Successful 216 | . 16 . 43 . 2 . 41 9 19 . 51 . 35 Failed 107 | . 17 . 15 . . . 12 3 5 . 34 . 21 Catastrophic 6 | . 2 . . . . . 1 . . . 3 . . Database Lockouts 3 | . . . 1 . . . . . . . 1 . 1 Manual 226 | . 26 . 38 . 1 . 43 9 23 . 51 . 35 Terminals 198 | . 24 . 37 . . . 35 11 21 . 42 . 28 Fabricators 8 | . . . . . . . . . . . 1 . 7 Repair Stations 42 | . 5 . 6 . . . 7 . . . 15 . 9 Recycling Units 41 | . 4 . 6 . . . 7 . 3 . 17 . 4 Scanalyzers 28 | . . . 10 . . . 4 . . . 5 . 9 Garrison Access 7 | . . . . . . . . 1 . . 6 . . Terminal Hacks 37 | . 2 . 8 . 2 . 6 5 4 . 8 . 2 Record 2 | . . . 1 . 1 . . . . . . . . Part Schematic 3 | . . . . . . . . . . . 2 . 1 Robot Schematic 1 | . . . . . . . . . . . . . 1 Robot Analysis 5 | . 1 . 2 . . . . . 2 . . . . Prototype ID Bank 2 | . . . . . . . . . . . 2 . . Open Door 3 | . . . . . . . . 3 . . . . . Branch Access Points 1 | . . . . . . . . 1 . . . . . Terminal Index 4 | . 1 . 1 . . . 1 . . . 1 . . Repair Station Index 2 | . . . 1 . . . 1 . . . . . . Alert Level 2 | . . . 1 . . . 1 . . . . . . Locate Traps 1 | . . . . . . . 1 . . . . . . Recall Reinforcements 1 | . . . . . . . 1 . . . . . . Registered Components 1 | . . . . . . . . . . . 1 . . Zone Layout 8 | . . . 2 . . . 1 1 2 . 2 . . Proto ID Catalog 1 | . . . . . 1 . . . . . . . . Fabricator Hacks 4 | . . . . . . . . . . . 1 . 3 Network Status 2 | . . . . . . . . . . . 1 . 1 Load Schematic 1 | . . . . . . . . . . . . . 1 Build 1 | . . . . . . . . . . . . . 1 Repair Station Hacks 25 | . 4 . 1 . . . 6 . . . 9 . 5 Scan Component 14 | . 2 . 1 . . . 3 . . . 5 . 3 Repair 11 | . 2 . . . . . 3 . . . 4 . 2 Recycling Unit Hacks 1 | . . . 1 . . . . . . . . . . Retrieve Components 1 | . . . 1 . . . . . . . . . . Scanalyzer 17 | . . . 7 . . . 2 . . . 2 . 6 Insert Component 5 | . . . 2 . . . . . . . . . 3 Analyze 5 | . . . 3 . . . . . . . . . 2 Retrieve Study 7 | . . . 2 . . . 2 . . . 2 . 1 Garrison Access Hacks 3 | . . . . . . . . . . . 3 . . Seal Access 3 | . . . . . . . . . . . 3 . . Unauthorized Hacks 129 | . 10 . 26 . . . 27 4 15 . 28 . 19 Terminals 94 | . 7 . 21 . . . 19 3 12 . 20 . 12 Track 13 | . 1 . 4 . . . 4 . 1 . 1 . 2 Assimilate 6 | . . . 1 . . . 1 . . . 3 . 1 Botnet 30 | . 2 . 7 . . . 6 2 6 . 5 . 2 Disrupt 5 | . 1 . 2 . . . . . . . . . 2 Operators 1 | . . . 1 . . . . . . . . . . Skim 38 | . 2 . 6 . . . 8 1 5 . 11 . 5 Sabotage 1 | . 1 . . . . . . . . . . . . Fabricators 4 | . . . . . . . . . . . . . 4 Prioritize 1 | . . . . . . . . . . . . . 1 Liberate 1 | . . . . . . . . . . . . . 1 Download 1 | . . . . . . . . . . . . . 1 Recompile 1 | . . . . . . . . . . . . . 1 Repair Stations 5 | . 1 . 1 . . . 1 . . . . . 2 Patch 5 | . 1 . 1 . . . 1 . . . . . 2 Recycling Units 24 | . 2 . 3 . . . 7 . 3 . 8 . 1 Monitor 2 | . . . . . . . 1 . . . 1 . . Reject 8 | . 1 . 2 . . . 2 . . . 3 . . Recyclers 3 | . . . . . . . 2 . . . 1 . . Mask 7 | . . . 1 . . . 2 . . . 3 . 1 Tunnel 4 | . 1 . . . . . . . 3 . . . . Scanalyzers 1 | . . . 1 . . . . . . . . . . Extract 1 | . . . 1 . . . . . . . . . . Garrison Access 1 | . . . . . . . . 1 . . . . . Jam 1 | . . . . . . . . 1 . . . . . Data Cores Recovered 2 | . . . 1 . . . . . . . . . 1 Used 1 | . . . . . . . . . . . . . 1 Hacking Detections 86 | . 7 . 13 . . . 12 3 5 . 26 . 20 Full Trace Events 12 | . 4 . 2 . . . 1 . . . 2 . 3 Feedback Events 2 | . . . . . . . 1 . . . 1 . . Corruption 2 | . . . . . . . 1 . . . 1 . . Feedback Blocked . | . . . . . . . . . . . . . . Robot Schematics Acquired 1 | . . . . . . . . . . . . . 1 Robots Built 4 | . . . . . . . . . . . . . 4 Authchips . | . . . . . . . . . . . . . . Time 134 | . . . . . . . . . . . . . 134 Total Robot Build Rating 16 | . . . . . . . . . . . . . 16 Part Schematics Acquired 16 | . . . 10 . . . . . . . 2 . 4 Parts Built . | . . . . . . . . . . . . . . Authchips . | . . . . . . . . . . . . . . Time . | . . . . . . . . . . . . . . Total Part Build Rating . | . . . . . . . . . . . . . . Part Studies Acquired 7 | . . . 2 . . . 2 . . . 2 . 1 Parts Repaired 11 | . 2 . . . . . 3 . . . 4 . 2 Time 351 | . 52 . . . . . 102 . . . 132 . 65 Parts Recycled . | . . . . . . . . . . . . . . Recycled Matter . | . . . . . . . . . . . . . . Retrieved Matter . | . . . . . . . . . . . . . . Retrieved Components 10 | . . . 10 . . . . . . . . . . Parts Scanalyzed 5 | . . . 2 . . . . . . . . . 3 Part Schematics Acquired 4 | . . . 2 . . . . . . . . . 2 Parts Damaged . | . . . . . . . . . . . . . . Bothacking | -11 -10 -10 -9 -9 -9 -8 -8 -8 -8 -8 -6 -6 -6 ------------ Run | Yrd Mat Min Mat Min Exi Min Mat Sto Rec Scr Fac Was Fac Used RIF Installer . | . . . . . . . . . . . . . . Robots Hacked . | . . . . . . . . . . . . . . Non-combat . | . . . . . . . . . . . . . . Combat . | . . . . . . . . . . . . . . Robot Hacks Applied . | . . . . . . . . . . . . . . Relay Couplers Released 7 | . . . . . . . 3 1 . . . . 3 Machine Destruction 7 | . . . . . . . 3 1 . . . . 3 Fabnet Peak Effective % . | . . . . . . . . . . . . . . Robots Rewired . | . . . . . . . . . . . . . . Allies Hacked 1 | . . . . . . . . . . . 1 . . Hacks Repelled . | . . . . . . . . . . . . . . Allies | -11 -10 -10 -9 -9 -9 -8 -8 -8 -8 -8 -6 -6 -6 -------- Run | Yrd Mat Min Mat Min Exi Min Mat Sto Rec Scr Fac Was Fac Total Allies 24 | . . 4 1 . . . 1 10 . . 3 . 5 Largest Group 10 | . . 3 1 1 . . 1 10 2 . 2 . 5 Highest-Rated Group 173 | . . 40 31 10 . . 10 173 32 . 52 . 74 Highest-Rated Ally 31 | . . 31 31 10 . . 10 29 16 . 26 . 26 Total Orders 19 | . . 1 10 . . . 2 2 . . 4 . . STAY 13 | . . 1 9 . . . 1 . . . 2 . . ROAM 1 | . . . . . . . . 1 . . . . . FOLLOW 5 | . . . 1 . . . 1 1 . . 2 . . Ally Attacks 92 | . . 5 6 . . . . 67 1 . . . 13 Total Damage 1261 | . . 62 61 . . . . 928 15 . . . 195 Kills 14 | . . 1 1 . . . . 10 . . . . 2 Allies Corrupted 1 | . . . 1 . . . . . . . . . . Allies Melted 1 | . . . . . . . . . 1 . . . . Intel | -11 -10 -10 -9 -9 -9 -8 -8 -8 -8 -8 -6 -6 -6 ------- Run | Yrd Mat Min Mat Min Exi Min Mat Sto Rec Scr Fac Was Fac Active Infowar (turns) 11172 | 13 108 . 1790 373 74 107 2734 453 634 249 2387 92 2158 Optics 11051 | . . . 1790 373 74 107 2734 453 634 249 2387 92 2158 Structural 3853 | . . . . . . . 425 289 634 247 1041 . 1217 Seismic 121 | 13 108 . . . . . . . . . . . . T.N.C. 128 | . . . 128 . . . . . . . . . . ECM 97 | . . . . . . . 19 17 . . 1 . 60 Robot Analysis Total 5 | . 1 . 2 . . . . . 2 . . . . Derelict Logs Recovered 2 | . . 1 . 1 . . . . . . . . . Drone Launches . | . . . . . . . . . . . . . . Drone Recoveries . | . . . . . . . . . . . . . . Exploration | -11 -10 -10 -9 -9 -9 -8 -8 -8 -8 -8 -6 -6 -6 ------------- Run | Yrd Mat Min Mat Min Exi Min Mat Sto Rec Scr Fac Was Fac Turns Passed 13860 | 45 1998 296 2260 373 74 107 2734 453 634 249 2387 92 2158 Spaces Moved 19568 | 51 3328 607 3581 718 213 243 3171 418 301 613 3396 203 2725 Core 207 | 51 156 . . . . . . . . . . . . Treads . | . . . . . . . . . . . . . . Legs 189 | . . . . . . . . . . . 189 . . Wheels . | . . . . . . . . . . . . . . Hover 9258 | . . . . . . . 1791 418 301 613 3207 203 2725 Flight 9914 | . 3172 607 3581 718 213 243 1380 . . . . . . Fastest Speed 27 | 50 37 37 34 34 34 34 27 38 38 38 30 43 43 Average Speed 38 | 50 37 37 35 34 34 34 35 38 38 38 39 43 48 Slowest Speed 190 | 50 117 37 40 34 34 34 120 98 38 38 190 43 118 Overloaded Moves 14 | . . . . . . . . . . . 14 . . Propulsion Burnouts . | . . . . . . . . . . . . . . Robots Hopped 37 | . 3 5 21 3 . . 5 . . . . . . Potential Cave-ins . | . . . . . . . . . . . . . . Cave-ins Triggered . | . . . . . . . . . . . . . . Exploration Rate (%) 72 | 4 100 94 98 98 63 70 98 44 62 53 82 91 58 Regions Visited 13 Branch Regions 7 Pre-discovered Areas 9 | . 1 1 . . 1 . . . 4 . 1 . 1 Known Exits Taken 4 | . . . . . . . 1 1 1 1 . . . Unknown Exits Taken 7 | 1 1 1 1 1 1 1 . . . . . . . Scrap Searched 8 | . . 2 . 3 . 1 . . . 2 . . . Spaces Dug 143 | . 18 . 7 11 . . 33 15 . . 39 . 20 Terrain Destroyed 2573 | . 519 57 288 233 . 39 269 15 . . 412 14 727 Melee 120 | . 6 . 7 . . . 33 15 . . 39 . 20 Projectile 62 | . . . . . . . . . . . 42 . 20 AOE 2391 | . 513 57 281 233 . 39 236 . . . 331 14 687 Terrain Rammed . | . . . . . . . . . . . . . . Walls Destroyed . | . . . . . . . . . . . . . . Machines Disabled . | . . . . . . . . . . . . . . Actions | -11 -10 -10 -9 -9 -9 -8 -8 -8 -8 -8 -6 -6 -6 --------- Run | Yrd Mat Min Mat Min Exi Min Mat Sto Rec Scr Fac Was Fac Total 23806 | 61 3679 652 4240 784 214 252 4309 644 818 629 4082 205 3237 Wait 2303 | . 54 19 394 14 . . 772 126 514 1 249 . 160 Move 19482 | 50 3321 596 3538 711 212 242 3160 417 300 612 3396 202 2725 Hop 37 | . 3 5 21 3 . . 5 . . . . . . Pick Up 91 | 2 11 3 12 1 1 . 15 1 . 4 27 2 12 Fast Attach 105 | 5 8 . 20 . . . 20 8 . 4 26 . 14 Attach 49 | . 4 1 6 . . . 10 4 . 1 13 . 10 Detach 27 | . 1 . 4 . . . 5 3 1 . 5 . 8 Swap 183 | . 15 5 16 5 . . 43 11 1 . 50 . 37 Drop 131 | . 10 6 25 2 1 . 15 8 1 7 38 . 18 Fire 861 | 4 145 12 170 33 . 10 175 5 . . 143 1 163 Melee 507 | . 105 5 34 14 . . 89 35 1 . 134 . 90 Ram 2 | . 2 . . . . . . . . . . . . Kick . | . . . . . . . . . . . . . . Crush . | . . . . . . . . . . . . . . Escape Stasis 26 | . . . . . . . . 26 . . . . . Rewire 1 | . . . . . . . . . . . 1 . . Trap 1 | . . . . 1 . . . . . . . . . Miscellaneous . | . . . . . . . . . . . . . . Route ------- -11/Scrapyard -10/Materials (discovered 5 exits: *Mat x3 / [*Min] / [*Sub]) -10/Mines (discovered 2 exits: *Mat x2) -9/Materials (discovered 4 exits: *Mat x3 / [*Min]) -9/Mines (discovered 3 exits: *Mat x2 / *Exi) -9/Exiles (discovered 2 exits: [*Min x2]) -8/Mines -8/Materials (discovered 4 exits: *Fac x3 / *Sto) -8/Storage -8/Recycling (discovered 2 exits: Fac / *Scr) -8/Scraptown -6/Factory (discovered 6 exits: *Fac x4 / *Low x2) -6/Waste -6/Factory (discovered 6 exits: *Fac x4 / *Low x2) History --------- Turn | Location | Event 9 | -11/Scrapyard | Discovered new exit (range 16) 46 | -11/Scrapyard | Entered Materials 245 | -10/Materials | Core integrity fell below 50% 270 | -10/Materials | Discovered new exit (range 15) 315 | -10/Materials | Discovered new exit (range 10) 321 | -10/Materials | Discovered new exit (range 15) 326 | -10/Materials | Build established: Mutant 396 | -10/Materials | Discovered new exit (range 7) 415 | -10/Materials | Repaired Flight Unit? 452 | -10/Materials | Discovered new exit (range 7) 651 | -10/Materials | Repaired Flight Unit? 2044 | -10/Materials | Entered Mines 2045 | -10/Mines | Assisted by bots powering up and referring to "LRC-V3" 2162 | -10/Mines | Assembled infested the area 2185 | -10/Mines | Found a Scrap Suit stashed away for nefarious purposes 2201 | -10/Mines | A weapon hastily lodged in a ceiling crevice suddenly fell to the ground 2209 | -10/Mines | Lost 3 allies 2271 | -10/Mines | Discovered new exit (range 15) 2322 | -10/Mines | Discovered new exit (range 13) 2329 | -10/Mines | Met a Derelict testing a Signal Generator 2332 | -10/Mines | Destroyed 10 combat bots 2340 | -10/Mines | Entered Materials 2340 | -9/Materials | Accompanied by 1 ally 2340 | -9/Materials | Evolved 2 slots: Propulsion x1, Utility x1 2376 | -9/Materials | Discovered new exit (range 14) 2541 | -9/Materials | Discovered new exit (range 16) 2719 | -9/Materials | Central database locked down 2812 | -9/Materials | Lost 3 parts (1p1n1u) 2822 | -9/Materials | Discovered new exit (range 5) 3212 | -9/Materials | Discovered new exit (range 21) 3375 | -9/Materials | Core integrity fell below 50% 3412 | -9/Materials | Loaded intel: 11 trap records 3483 | -9/Materials | Learned location of 3 exits from Materials 3540 | -9/Materials | First assault squad dispatched 3543 | -9/Materials | Learned location of 2 exits from Materials 3594 | -9/Materials | Learned location of 1 exit from Recycling 3690 | -9/Materials | Destroyed 9 combat bots 3745 | -9/Materials | Learned 4 Recycling zone layouts 4502 | -9/Materials | Sterilization system engaged 4502 | -9/Materials | Non-combat units ordered to evacuate 4600 | -9/Materials | Entered Mines 4600 | -9/Mines | Accompanied by 1 ally 4602 | -9/Mines | Found a hidden stash of uninstalled traps 4644 | -9/Mines | Discovered new exit (range 14) 4701 | -9/Mines | Deemed a non-threat by the Exiles lab entrance 4701 | -9/Mines | Discovered new exit (range 5) 4719 | -9/Mines | Received a Rocket Launcher from a helpful Derelict 4793 | -9/Mines | Discovered new exit (range 10) 4799 | -9/Mines | Learned 4 Materials zone layouts 4973 | -9/Mines | Entered Exiles 4978 | -9/Exiles | Discovered new exit (range 15) 4983 | -9/Exiles | Met 8R-AWN 4987 | -9/Exiles | Met EX-HEX 4997 | -9/Exiles | Met EX-BIN 5001 | -9/Exiles | Aligned with FarCom system 5001 | -9/Exiles | Given EX-Vault access code 5010 | -9/Exiles | Opened EX-Vault 5012 | -9/Exiles | Found Trap Reconfigurator 5021 | -9/Exiles | Warned to stay clear of 0b10 Research branches 5030 | -9/Exiles | Met EX-DEC 5033 | -9/Exiles | Learned location of Zion (-6) 5043 | -9/Exiles | Discovered new exit (range 10) 5047 | -9/Exiles | Left Exiles lab with Trap Reconfigurator 5047 | -9/Exiles | Entered Mines 5052 | -8/Mines | Core integrity fell below 20% 5149 | -8/Mines | Discovered new exit (range 12) 5154 | -8/Mines | Entered Materials 5154 | -8/Materials | Evolved 2 slots: Propulsion x1, Utility x1 5155 | -8/Materials | Identified exit to Factory 5155 | -8/Materials | Identified exit to Storage 5294 | -8/Materials | Repaired Rocket Launcher? 5419 | -8/Materials | Garrison activated, responded to threat 5459 | -8/Materials | Lost 7 parts (2p2n1u2w) 5521 | -8/Materials | Core integrity fell below 50% 5614 | -8/Materials | Repaired Rocket Launcher+? 5656 | -8/Materials | Repaired Hpw. Tractor Beam 5821 | -8/Materials | Build established: Scavenger-Sprinter 5825 | -8/Materials | Destroyed 7 combat bots 5954 | -8/Materials | First assault squad dispatched 6122 | -8/Materials | Core integrity fell below 20% 6127 | -8/Materials | Lost 4 parts (3n1w) 6347 | -8/Materials | Learned Factory security intel 6420 | -8/Materials | Learned Storage emergency access door positions 6485 | -8/Materials | Learned Factory terminal intel 6518 | -8/Materials | Build established: Mutant 6542 | -8/Materials | Learned 2 Lower Caves zone layouts 6591 | -8/Materials | Learned 2 Lower Caves zone layouts 6631 | -8/Materials | Learned location of 2 exits from Factory 6680 | -8/Materials | Learned Storage garrison access intel 6738 | -8/Materials | Learned 4 Factory zone layouts 7842 | -8/Materials | Sterilization system engaged 7842 | -8/Materials | Non-combat units ordered to evacuate 7888 | -8/Materials | Entered Storage 7890 | -8/Storage | Loaded intel: 1 garrison access location 8118 | -8/Storage | Assisted by bots powering up and referring to "LRC-V3" 8118 | -8/Storage | Identified exit to Recycling 8239 | -8/Storage | Garrison activated, responded to threat 8254 | -8/Storage | Met 01-MTF 8288 | -8/Storage | First assault squad dispatched 8322 | -8/Storage | Used back door to open Recycling access 8341 | -8/Storage | Entered Recycling 8341 | -8/Recycling | Accompanied by 3 allies (01-MTF) 8342 | -8/Recycling | Identified exit to Scraptown 8343 | -8/Recycling | Identified exit to Factory 8484 | -8/Recycling | Scanned before Scraplab entrance 8492 | -8/Recycling | Learned location of 2 exits from Factory 8508 | -8/Recycling | Entered Scraplab 8571 | -8/Recycling | Learned 2 Lower Caves zone layouts 8645 | -8/Recycling | Build established: Scavenger-Scout 8694 | -8/Recycling | Learned location of 1 exit from Extension 8741 | -8/Recycling | Learned location of 1 exit from Lower Caves 8777 | -8/Recycling | Learned Factory terminal intel 8825 | -8/Recycling | Learned Factory trap positions 8885 | -8/Recycling | Learned Factory fabricator intel 8957 | -8/Recycling | Learned location of 1 exit from Storage 8975 | -8/Recycling | Entered Scraptown 8975 | -8/Scraptown | System corruption cleaned by C-Scrubber 9049 | -8/Scraptown | Discovered exit to Factory (range 11) 9080 | -8/Scraptown | Visited Red Mages 9086 | -8/Scraptown | Visited Assassins FH 9091 | -8/Scraptown | Visited IN-MT5's Study 9097 | -8/Scraptown | Turned away by UFD registrar 9156 | -8/Scraptown | Visited Awakened 9161 | -8/Scraptown | Visited Junk Repository 9192 | -8/Scraptown | Visited Spacefarers 9224 | -8/Scraptown | Entered Factory 9224 | -6/Factory | Evolved 4 slots: Propulsion x2, Utility x2 9225 | -6/Factory | Identified exit to Factory 9225 | -6/Factory | Identified exit to Lower Caves 9227 | -6/Factory | Loaded intel: 83 trap records 9229 | -6/Factory | Loaded intel: 26 terminal locations 9230 | -6/Factory | Loaded intel: 6 fabricator locations 9460 | -6/Factory | Repaired Hvy. Missile Launcher 9484 | -6/Factory | Lost 3 parts (3n) 9772 | -6/Factory | Central database locked down 9857 | -6/Factory | Learned Extension emergency access door positions 9894 | -6/Factory | Learned location of 1 exit from Hub_04(d) 9923 | -6/Factory | Learned location of 2 exits from Archives 9944 | -6/Factory | Learned Factory terminal intel 9956 | -6/Factory | Learned 4 Proximity Caves zone layouts 9978 | -6/Factory | Learned location of 2 exits from Upper Caves 10564 | -6/Factory | Repaired Antimatter Cannon 10744 | -6/Factory | Discovered exit to Factory (range 18) 10869 | -6/Factory | Repaired Cld. Aerolev Unit 10901 | -6/Factory | Repaired Aerolev Unit 10974 | -6/Factory | First assault squad dispatched 11003 | -6/Factory | Build established: Hacker-Mutant 11235 | -6/Factory | Unchained authorized (QV-33N) 11443 | -6/Factory | Learned location of 1 exit from Proximity Caves 11466 | -6/Factory | Learned location of 1 exit from Cetus 11487 | -6/Factory | Learned 2 Proximity Caves zone layouts 11488 | -6/Factory | Learned Extension trap positions 11534 | -6/Factory | Learned Hub_04(d) emergency access door positions 11602 | -6/Factory | Spotted B-75 Beast 11607 | -6/Factory | Found Prototype Launcher 11607 | -6/Factory | Identified Rocket Array 11609 | -6/Factory | Found Rocket Array 11611 | -6/Factory | Manually triggered Chute Trap 11611 | -6/Factory | Sucked down chute 11611 | -6/Factory | Entered Waste 11611 | -6/Waste | The area was eerily silent 11642 | -6/Waste | Lost 5 parts (4n1w) 11682 | -6/Waste | Discovered new exit (range 22) 11691 | -6/Waste | A Compactor rumbled back to life 11691 | -6/Waste | Spotted C-40 Crusher 11703 | -6/Waste | Entered Factory 11704 | -6/Factory | Loaded intel: 26 terminal locations 11756 | -6/Factory | Repaired Cld. Aerolev Unit 11914 | -6/Factory | Discovered exit to Factory (range 4) 11986 | -6/Factory | Core integrity fell below 50% 11990 | -6/Factory | Repaired Gravmag Array 12053 | -6/Factory | First assault squad dispatched 12439 | -6/Factory | Discovered exit to Lower Caves (range 11) 12517 | -6/Factory | Discovered exit to Lower Caves (range 14) 12571 | -6/Factory | Learned Extension trap positions 12646 | -6/Factory | Discovered exit to Factory (range 13) 12647 | -6/Factory | Loaded intel: 93 trap records 12668 | -6/Factory | Fabricated S-27 Virus? 12671 | -6/Factory | Learned Factory terminal intel 12684 | -6/Factory | Learned Hub_04(d) emergency access door positions 12704 | -6/Factory | Build established: Hacker-Scout 12708 | -6/Factory | Learned Extension emergency access door positions 12890 | -6/Factory | Central database locked down 12980 | -6/Factory | Spotted B-75 Beast 12981 | -6/Factory | Cargo convoy interrupted 12982 | -6/Factory | Core integrity fell below 20% 13013 | -6/Factory | Build established: Scout 13441 | -6/Factory | High security lockdown imminent 13489 | -6/Factory | Destroyed 8 combat bots 13521 | -6/Factory | High security lockdown engaged 13624 | -6/Factory | Destroyed 7 combat bots 13771 | -6/Factory | Build established: Mutant 13778 | -6/Factory | Destroyed 8 combat bots 13861 | -6/Factory | Destroyed by P-60 Hacker with Shock Rifle Last Messages --------------- 13818_ Subcomponent Replicator disabled. 13819_ Acquired 31 matter. 13820_ System corrupted: Prc. Rocket Launcher failed to launch. 13824_ The unstable cave ceiling collapses. 13824_ Destroyed Carbon-fiber Leg. 13835_ C-45 Heavy ARC bursts open, deploying its payload. 13835_ G-67 Veteran unfolds itself. 13835_ G-50 Soldier unfolds itself. 13835_ E-15 Imp unfolds itself. 13836_ Acquired 88 matter. 13844_ Cld. Aerolev Unit destroyed. 13847_ Dropped Hvy. Deuterium Engine. 13854_ Cmb. Airjet blown off. 13854_ Imp. Hover Unit blown off. 13854_ Hpw. Tractor Beam blown off. 13854_ E-15 Imp destroyed. 13856_ Dropped Lrg. Storage Unit. 13860_ The unstable cave ceiling collapses. Map ----- +----------------------------------------------------+ | ?????????###+##?????????????## " " ! | | ?????????# ############### "# | | ?????????# # | | ?????????# T ####### | | ?????????# ####?##### | | ?????????# ####### ####### !! ####### | | ?????????##?????# ! ## # ! + """ | | ????????????????# !! ####### "R" | | ????????????????# #?????# " " | | ????????????????# # b #?????# | | ????# ????????# !g ####### | | ^^?? ???????# ] [ C + "" | | ^^?? ???????# / C# # # ######### | | ???? #???????# g # ##g ##???????# "" | | ^??? #?????### ## ## #????????# | | ?^?? #???? "%/ * g ## # #????????# ! | | ???? ## """ "# # # #????????# ! | | ????# ## """ ?# ######+##+##???????##### | | ????# ## ""???# # #???????????? | | ????# #???????# ]# #???????????? | | ????# #???????# # #???????????? | | ????# #???????# # #???????????? | | ????# #???????# #* = #???????????? | | ????# #???????########=p! +???????????? | | ????# #??????????????##%=/ #???????????? | | ????# #################@!!! #???????????? | | ????# ! = C +=!| #???????????? | | ????# ##+##############!!! #???????????? | | ????# # #??# #???????????? | | ##### # #??# #???????????? | | + #??##############???????????? | | # #???????????????????????????? | | # """" """ #???????????????????????????? | | ##+###### """" """ #???????????????????????????? | | ???# """" """ #???????????????????????????? | | ?# """" #???????????????????????????? | | ## """" #???????????????????????????? | | "" """ ## """" #???????????????????????????? | | "" """ ## """" #???????????????????????????? | | "" """ ## ?? #???????????????????????????? | | #######????####???????????????????????????? | | "" """ #?????????????????????????????????????????? | | "" """ #?????????????????????????????????????????? | | "" """ #?????????????????????????????????????????? | | ? ???#?????????????????????????????????????????? | | ?" "?????????????????????????????????????????????? | | ?" "?????????????????????????????????????????????? | | ?" "?????????????????????????????????????????????? | | ?? ??????????????????????????????????????????????? | | ?? ??????????????????????????????????????????????? | +----------------------------------------------------+ Best States ------------- Heat Dissipation 50 Energy Generation 19 Energy Capacity 500 Matter Stores 300 Matter Capacity 300 Sight Range 22 Terrain Scan Density 10 ECM Strength 2 Additional Mass Support 9 Armor Coverage 300 Resistance: EX 25 Propulsion Shielding 33 Utility Shielding 66 Evasion (%) 65 Targeting Accuracy 8 Launcher Accuracy 30 Offensive Hacking 22 Defensive Hacking 10 Authchip Count 1 Item Schematics ----------------- Rocket Launcher | -9/Materials | Scanalyzed Hacking Suite | -9/Materials | Scanalyzed Hcp. Battery | -9/Materials | Extracted Spread Laser | -9/Materials | Extracted VTOL Module | -9/Materials | Extracted Welding Torch | -9/Materials | Extracted Med. Storage Unit | -9/Materials | Extracted Lrg. Storage Unit | -9/Materials | Extracted Seismic Detector | -9/Materials | Extracted Med. Battery | -9/Materials | Extracted Imp. Fusion Compressor | -6/Factory | Hacked Mni. Drone Bay | -6/Factory | Hacked CPS Tube | -6/Factory | Scanalyzed Antigrav System | -6/Factory | Downloaded Nuclear Pulse Thruster | -6/Factory | Hacked Lrn. Missile Launcher | -6/Factory | Scanalyzed Robot Schematics ------------------ M-28 Smith | -6/Factory | Hacked Fabricated ------------ S-27 Virus | x4 | -6/Factory | Preloaded Repaired ---------- Flight Unit | 60% | -10/Materials Flight Unit | 10% | -10/Materials Rocket Launcher | 15% | -8/Materials Rocket Launcher | 7% | -8/Materials Hpw. Tractor Beam | 16% | -8/Materials Hvy. Missile Launcher | 20% | -6/Factory Antimatter Cannon | 12% | -6/Factory Cld. Aerolev Unit | 43% | -6/Factory Aerolev Unit | 48% | -6/Factory Cld. Aerolev Unit | 63% | -6/Factory Gravmag Array | 35% | -6/Factory Studied --------- Flight Unit | -9/Materials | Hacked Grenade Launcher | -9/Materials | Hacked Rocket Launcher | -8/Materials | Hacked Lgt. Ion Engine | -8/Materials | Hacked Flexi-carbon Leg | -6/Factory | Hacked Hvy. Missile Launcher | -6/Factory | Hacked Gravmag Array | -6/Factory | Hacked Alien Tech Used ----------------- None Achievements -------------- Treasure Hunter Challenges ------------ None Game ------ Seed FlightCannonBuckler Manual? 0 Play Time 03:55:38 Cumulative 582.0 hours Start 2025.10.30 @ 17:38:54 End 2025.10.30 @ 21:38:23 Sessions 1 Manual Loads 0 Difficulty Rogue Special Mode None Game No. 243 Rogue 243 Adventurer 0 Explorer 0 Win Type - Total 42 Types 18/3/6/2/6/1/0/3/0/3 Lore% 96 Gallery% 88 Achievement% 70 Wizard Run 0 Options --------- Layout 1 ASCII 0 Keyboard 0 Movement Numpad Keybinds 0 Fullscreen 1 Font 24/Smallcaps Map View 50x35 Zoom Use 0% Tactical HUD 1 Map Filters NONE Filters NONE Steam 1 RUN: 8fbc7d27-c8c0-4ca7-87eb-729e048bd7c6